Cogmind - Beta 15 @@@ ROGUE MODE // 2025.05.30 @ 22:43:40 Player: Xenocore Result: Destroyed by UH-QIY(R) with Subdweller Laser Performance ------------- Evolutions (0) 0 Regions Visited (2) 400 Robots Destroyed (44) 220 Value Destroyed (1077) 1077 Prototype IDs (2) 40 Alien Tech Used (0) 0 Bonus (0) 0 TOTAL SCORE: 1737 Bonus ------- None Cogmind --------- Core Integrity 0/250 Matter 251/300 Energy 250/250 System Corruption 0% Temperature Cool (6) Movement Walking (120) Location -10/Subcaves Parts ------- > --- POWER (1) -------- Ion Engine > --- PROPULSION (2) --- Aluminum Leg Aluminum Leg > --- UTILITY (2) ------ Medium Storage Unit Terrain Scanner > --- WEAPON (2) ------- Battle Rifle Mini Grenade Launcher > --- INVENTORY (10) --- Ion Engine Aluminum Leg Aluminum Leg Aluminum Leg Sensor Array Light Cannon Light Cannon Battle Cannon Peak State ------------ > --- POWER ------------ Subdweller Power Source > --- PROPULSION ------- Aluminum Leg Aluminum Leg > --- UTILITY ---------- Medium Storage Unit Terrain Scanner > --- WEAPON ----------- Light Cannon Mini Grenade Launcher > --- INVENTORY -------- Ion Engine Ion Engine Aluminum Leg Aluminum Leg Aluminum Leg Aluminum Leg Sensor Array Battle Rifle Light Cannon Light Cannon [Rating: 10] Favorites ----------- Power Ion Engine Engine Ion Engine Propulsion Aluminum Leg Leg Aluminum Leg Utility Medium Storage Unit Device Terrain Scanner Storage Medium Storage Unit Weapon Light Cannon Energy Gun Medium Laser Ballistic Gun Light Assault Rifle Ballistic Cannon Light Cannon Launcher Mini Grenade Launcher Build | -11 -10 -10 ------- Run | Yrd Mat Sub Slots Evolved . | . . . Power . | . . . Propulsion . | . . . Utility . | . . . Weapon . | . . . Parts Attached 30 | 7 17 6 Power 5 | 2 1 2 Engine 5 | 2 1 2 Core . | . . . Reactor . | . . . Propulsion 10 | 2 7 1 Treads . | . . . Leg 10 | 2 7 1 Wheel . | . . . Hover . | . . . Flight . | . . . Utility 4 | 1 2 1 Device 2 | . 1 1 Storage 2 | 1 1 . Processor . | . . . Hackware . | . . . Protection . | . . . Artifact . | . . . Weapon 11 | 2 7 2 Energy Gun 1 | 1 . . Energy Cannon . | . . . Ballistic Gun 4 | 1 2 1 Ballistic Cannon 4 | . 4 . Launcher 2 | . 1 1 Special Weapon . | . . . Impact Weapon . | . . . Slashing Weapon . | . . . Piercing Weapon . | . . . Special Melee Weapon . | . . . Unidentified Prototypes . | . . . Parts Lost 2 | . . 2 Power 1 | . . 1 Propulsion 1 | . . 1 Utility . | . . . Weapon . | . . . Highest Loss Streak 2 | . . 2 To Critical Strikes . | . . . Average Backups 8 | 1 8 9 Power 1 | . 1 1 Propulsion 3 | . 2 3 Utility 1 | . 1 1 Weapon 2 | . 3 2 Tool/Special . | . . . Unused Backups 11 | . 6 5 Power 1 | . 1 . Propulsion 5 | . 3 2 Utility 1 | . . 1 Weapon 4 | . 2 2 Tool/Special . | . . . Average Slot Usage (%) 99 | . 99 99 Engine 13 | . 14 13 Leg 28 | . 28 28 Device 13 | . 13 14 Storage 14 | . 14 14 Energy Gun 2 | . 6 . Ballistic Gun 7 | . 8 6 Ballistic Cannon 11 | . 13 9 Launcher 6 | . . 12 Peak Build Rating 10 | 6 8 10 Average Rating 8 | 4 7 9 On Entrance 4 | . 6 8 Naked Turns . | . . . Heaviest Build 23 | 13 23 23 Greatest Support 20 | 20 20 20 Greatest Overweight (x) 4 | 4 1 1 Average Overweight (x) . | . . . Largest Inventory Capacity 10 | 8 10 10 Average Capacity 9 | 7 9 10 Most Carried 10 | 2 10 10 Average Carried 8 | 1 8 9 Final Capacity 10 | 8 10 10 Final Carried 10 | 2 10 8 Class Distribution -------------------- 87% | Mutant 12% | Scavenger-Mutant Dominant Class ---------------- Mutant | -10/Materials Mutant | -10/Subcaves Resources | -11 -10 -10 ----------- Run | Yrd Mat Sub Matter Collected 1363 | 161 564 638 Remotely . | . . . Salvage Created 1297 | . 957 340 Parts 80 | . 48 32 Haulers Intercepted 2 | . 2 . Recyclers Shooed 4 | . 4 . Parts Field Recycled . | . . . Retrieved Matter . | . . . Parts Self-Destructed 10 | . . 10 Prevented . | . . . Kills | -11 -10 -10 ------- Run | Yrd Mat Sub Combat Hostiles Destroyed 32 | . 15 17 Guns 10 | . 9 1 Cannons 3 | . 2 1 AOE 19 | . 4 15 Classes Destroyed 8 | . 7 1 Worker 1 | . 1 . Tunneler 1 | . 1 . Hauler 2 | . 2 . Recycler 5 | . 5 . Watcher 3 | . 3 . Swarmer 9 | . 3 6 Grunt 12 | . 12 . Subdweller 11 | . . 11 Best Kill Streak 5 | . 5 3 Combat Bots Only 3 | . 3 3 Max Kills in Single Turn 3 | . 2 3 Gunslinging . | . . . Exploded 3 | . 1 3 Melee . | . . . Uniques/NPCs Destroyed . | . . . Combat | -11 -10 -10 -------- Run | Yrd Mat Sub Hostile Shots Fired 129 | . 59 70 Missed 43 | . 12 31 Hits 86 | . 47 39 Projectile 86 | . 47 39 Damage Taken 1219 | . 583 636 Core 253 | . 110 143 Absorbed by Shields . | . . . Core Remaining (%) 100 | 100 . . Volleys Fired 142 | . 85 57 Largest 2 | . 2 2 Hottest 80 | . 80 60 Shots Fired 256 | . 170 86 Gun 153 | . 146 7 Cannon 42 | . 13 29 Launcher 61 | . 11 50 Special . | . . . Kinetic 122 | . 86 36 Thermal 73 | . 73 . Explosive 61 | . 11 50 Electromagnetic . | . . . Robot Hit Streak 13 | . 13 12 Robot Miss Streak 7 | . 7 3 Penetration Max . | . . . Secondary Targets . | . . . Shots Hit Robots 121 | . 92 29 Core Hits 72 | . 50 22 Critical Kills 1 | . 1 . Critical Parts Destroyed . | . . . Critical Strikes 8 | . 7 1 Burn 5 | . 5 . Destroy 1 | . 1 . Blast 2 | . 1 1 Melee Attacks . | . . . Impact . | . . . Slashing . | . . . Piercing . | . . . Sneak Attacks . | . . . Combat Hostiles . | . . . Follow-up Attacks . | . . . Damage Inflicted 3346 | . 1570 1776 Guns 861 | . 802 59 Cannons 278 | . 120 158 Explosions 2207 | . 648 1559 Melee . | . . . Ramming . | . . . Kinetic 625 | . 408 217 Thermal 514 | . 514 . Explosive 2207 | . 648 1559 Electromagnetic . | . . . Impact . | . . . Slashing . | . . . Piercing . | . . . Highest Corruption . | . . . Average Corruption . | . . . Corruption Purged . | . . . Corruption Blocked . | . . . Overload Shots . | . . . Overflow Damage 70 | . . 70 Projectiles 14 | . . 14 Explosions 56 | . . 56 Melee . | . . . Knockbacks 3 | . 2 1 Impact . | . . . Kinetic 3 | . 2 1 Secondary . | . . . Self-Inflicted Damage 129 | . 22 107 Shots 10 | . 3 7 Rammed . | . . . Targets Rammed . | . . . Kicked . | . . . Crushed . | . . . Highest Temperature 188 | . 188 . Average Temperature 68 | . 68 . Received Heat Transfer 363 | . 273 90 Siege Activations . | . . . Martial Activations . | . . . Shielding Activations . | . . . Robots Disrupted . | . . . Combat Hostiles . | . . . Robots Corrupted . | . . . Combat Hostiles . | . . . Parts Fried . | . . . Impact Corruptions . | . . . Robots Melted . | . . . Combat Hostiles . | . . . Parts Melted 2 | . 2 . Heat Transferred 1887 | . 1887 . Parts Sabotaged . | . . . Parts Stolen . | . . . Parts Stripped . | . . . Power Chain Reactions . | . . . Alert | -11 -10 -10 ------- Run | Yrd Mat Sub Maximum Alert Level . | . . . Low Security (%) 100 | 100 100 . Level 1 . | . . . Level 2 . | . . . Level 3 . | . . . Level 4 . | . . . Level 5 . | . . . High Security . | . . . Max Security . | . . . Peak Influence 164 | . 164 . Initial . | . . . Average 51 | . 52 . Influence Increases 725 | . 535 190 Destroy 0b10 Robot/C 420 | . 300 120 Destroy 0b10 Robot/NC 60 | . 60 . Destroy Leader 90 | . 80 10 Successful Hack 17 | . 17 . Disable Machine 15 | . 15 . Destroy Structure 48 | . 48 . Partial Spotted 15 | . 15 . Lose Combat Pursuer 60 | . . 60 Influence Decreases 611 | . 535 76 Time Decay 591 | . 535 56 Lost Part 20 | . . 20 Squads Dispatched 3 | . 3 . Investigation 1 | . 1 . Extermination . | . . . Reinforcement 2 | . 2 . Assault . | . . . Garrison . | . . . Intercept . | . . . Searches Triggered . | . . . Construction Impeded . | . . . Haulers Reinforced . | . . . Active Scanning Responses . | . . . Cargo Convoy Interrupts . | . . . Stealth | -11 -10 -10 --------- Run | Yrd Mat Sub Distress Signals 1 | . 1 . Communications Jammed . | . . . Distress Signals . | . . . Times Spotted 48 | . 31 17 Peak Tracking Total 5 | . 5 5 Tactical Retreats 8 | . 6 2 Traps | -11 -10 -10 ------- Run | Yrd Mat Sub Traps Triggered 1 | . 1 . Indirectly . | . . . Trap Hack Attempts . | . . . Triggered . | . . . Disarmed . | . . . Reprogrammed . | . . . Reused . | . . . Traps Extracted . | . . . Installed . | . . . Triggered . | . . . Machines | -11 -10 -10 ---------- Run | Yrd Mat Sub Machines Disabled 1 | . 1 . Max in Single Turn 1 | . 1 . Machines Repaired . | . . . Machines Dismantled . | . . . Machines Sabotaged . | . . . Overloaded Fab Kills . | . . . Hacking | -11 -10 -10 --------- Run | Yrd Mat Sub Machines Accessed 9 | . 6 3 Terminals 5 | . 5 . Fabricators . | . . . Repair Stations . | . . . Recycling Units 1 | . 1 . Scanalyzers . | . . . Garrison Access . | . . . Total Hacks 20 | . 13 7 Successful 12 | . 5 7 Failed 8 | . 8 . Catastrophic 1 | . 1 . Database Lockouts . | . . . Manual 2 | . . 2 Terminals 12 | . 12 . Fabricators . | . . . Repair Stations . | . . . Recycling Units 1 | . 1 . Scanalyzers . | . . . Garrison Access . | . . . Terminal Hacks 11 | . 4 7 Record 6 | . 1 5 Prototype ID Bank 1 | . 1 . Open Door 1 | . . 1 Registered Components 1 | . 1 . Zone Layout 1 | . 1 . Release Object 1 | . . 1 Fabricator Hacks . | . . . Repair Station Hacks . | . . . Recycling Unit Hacks 1 | . 1 . Retrieve Matter 1 | . 1 . Scanalyzer . | . . . Garrison Access Hacks . | . . . Unauthorized Hacks . | . . . Terminals . | . . . Fabricators . | . . . Repair Stations . | . . . Recycling Units . | . . . Scanalyzers . | . . . Garrison Access . | . . . Data Cores Recovered . | . . . Used . | . . . Hacking Detections 4 | . 4 . Full Trace Events . | . . . Feedback Events . | . . . Feedback Blocked . | . . . Robot Schematics Acquired . | . . . Robots Built . | . . . Authchips . | . . . Time . | . . . Total Robot Build Rating . | . . . Part Schematics Acquired . | . . . Parts Built . | . . . Authchips . | . . . Time . | . . . Total Part Build Rating . | . . . Parts Repaired . | . . . Time . | . . . Parts Recycled . | . . . Recycled Matter . | . . . Retrieved Matter . | . . . Retrieved Components . | . . . Parts Scanalyzed . | . . . Part Schematics Acquired . | . . . Parts Damaged . | . . . Bothacking | -11 -10 -10 ------------ Run | Yrd Mat Sub Used RIF Installer . | . . . Robots Hacked . | . . . Non-combat . | . . . Combat . | . . . Robot Hacks Applied . | . . . Relay Couplers Released . | . . . Fabnet Peak Effective % . | . . . Robots Rewired . | . . . Allies Hacked . | . . . Hacks Repelled . | . . . Allies | -11 -10 -10 -------- Run | Yrd Mat Sub Total Allies . | . . . Largest Group . | . . . Highest-Rated Group . | . . . Highest-Rated Ally . | . . . Total Orders . | . . . Ally Attacks . | . . . Total Damage . | . . . Kills . | . . . Allies Corrupted . | . . . Allies Melted . | . . . Intel | -11 -10 -10 ------- Run | Yrd Mat Sub Active Infowar (turns) 4060 | . 1842 2218 Terrain 2214 | . . 2214 ECM 1846 | . 1842 4 Robot Analysis Total . | . . . Derelict Logs Recovered 1 | . . 1 Drone Launches . | . . . Drone Recoveries . | . . . Exploration | -11 -10 -10 ------------- Run | Yrd Mat Sub Turns Passed 4142 | 57 1867 2218 Spaces Moved 2551 | 40 984 1527 Core 14 | 14 . . Treads . | . . . Legs 2537 | 26 984 1527 Wheels . | . . . Hover . | . . . Flight . | . . . Fastest Speed 50 | 50 120 120 Average Speed 136 | 112 153 126 Slowest Speed 250 | 250 190 190 Overloaded Moves . | . . . Propulsion Burnouts . | . . . Robots Hopped . | . . . Potential Cave-ins 9 | . . 9 Cave-ins Triggered . | . . . Exploration Rate (%) 58 | 4 99 71 Regions Visited 2 Branch Regions 1 Pre-discovered Areas 1 | . . 1 Known Exits Taken . | . . . Unknown Exits Taken 2 | 1 1 . Scrap Searched 10 | . . 10 Spaces Dug 82 | . . 82 Terrain Destroyed 386 | . 51 335 Melee . | . . . Projectile 2 | . 1 1 AOE 384 | . 50 334 Terrain Rammed . | . . . Walls Destroyed . | . . . Machines Disabled . | . . . Actions | -11 -10 -10 --------- Run | Yrd Mat Sub Total 2964 | 48 1195 1721 Wait 181 | 1 60 120 Move 2549 | 39 983 1527 Hop . | . . . Pick Up 26 | 1 20 5 Fast Attach 10 | 6 4 . Attach 3 | . 1 2 Detach . | . . . Swap 22 | 1 17 4 Drop 30 | . 25 5 Fire 142 | . 85 57 Melee . | . . . Ram . | . . . Kick . | . . . Crush . | . . . Escape Stasis . | . . . Rewire . | . . . Trap . | . . . Miscellaneous 1 | . . 1 Route ------- -11/Scrapyard -10/Materials (discovered 5 exits: [*Mat x3] / [*Min] / *Sub) -10/Subcaves (discovered 1 exit: [*Mat]) History --------- Turn | Location | Event 6 | -11/Scrapyard | Discovered new exit (range 16) 58 | -11/Scrapyard | Entered Materials 311 | -10/Materials | Build established: Mutant 366 | -10/Materials | Discovered new exit (range 15) 398 | -10/Materials | Discovered new exit (range 9) 832 | -10/Materials | Discovered new exit (range 5) 1074 | -10/Materials | Discovered new exit (range 8) 1173 | -10/Materials | Build established: Scavenger-Mutant 1353 | -10/Materials | Discovered new exit (range 10) 1699 | -10/Materials | Build established: Mutant 1925 | -10/Materials | Entered Subcaves 2168 | -10/Subcaves | Discovered new exit (range 10) 2261 | -10/Subcaves | Learned location of 2 exits from Materials 2376 | -10/Subcaves | Ambushed by Subdweller buried in earth 2378 | -10/Subcaves | Core integrity fell below 50% 2868 | -10/Subcaves | A swath of the cavern ceiling suddenly collapsed 2941 | -10/Subcaves | Ambushed by Subdweller buried in earth 3231 | -10/Subcaves | Visited Clippyterm 3235 | -10/Subcaves | Learned location of Extension (-6) 3235 | -10/Subcaves | Learned Research security intel 3391 | -10/Subcaves | Ambushed by Subdweller buried in earth 3942 | -10/Subcaves | Released subatomizers from SUBCON Basin 4089 | -10/Subcaves | Core integrity fell below 20% 4143 | -10/Subcaves | Destroyed by UH-QIY(R) with Subdweller Laser Last Messages --------------- nuisance in their natural Subcaves environment where a certain balance has been achieved, there is a high probability that sudden introduction into previously unexposed areas could cause more extreme side effects. Take all precautions to prevent this from happening. >>Release Inventory Accessing inventory controls... Collection purity confirmed 100%... Ejecting SUBCON Basin... Delivery behind schedule, handle with care! 03937_ Dropped Lgt. Cannon. 03940_ Acquired Lgt. Cannon. 03942_ Released subatomizers from SUBCON Basin. 04064_ Acquired 11 matter. 04083_ S-10 Pest destroyed. 04093_ Lgt. Ion Engine fries itself beyond repair. 04094_ Lgt. Assault Rifle fries itself beyond repair. 04094_ S-10 Pest destroyed. 04098_ Acquired 6 matter. 04099_ Lgt. Ion Engine fries itself beyond repair. 04100_ Flight Unit fries itself beyond repair. Map ----- +----------------------------------------------------+ | # ##?# # # #???????????????????????????? | | ## #### ### ##?????????????????????????#? | | # &!## #??### ##??????????????????????#???#? | | # & ##??????##??#?????????????????????????? | | & = ##???????????????????????????????????# | | ###?????????????????????????????????? | | ## #?????#???????????????????????????? | | #### #???##????????????????????????????? | | #??## ##?????????????????????????????????? | | #??#### ##??????????????????????????????????? | | ##????## ##?????????????????????????????????## | | #?????# ##???#?????#????????????????#????## | | ##?#??## ##??????????#???????????????????# | | #????#?##### #??????????????????????????????# | | #??????????# #??##?#???????????????????????## | | ##?????????## ##?????????????????????????????# | | #??????#???# ##??????#??????????????????????# | | #?????????## #???#????????#????????????????# | | #????#????## ##??????#??????????????????????# | | ?????????## ##?###??#####?###??????????????# | | ?????#???# ### #### ### #???#########??# | | ??????# ## ##??# ###### | | ??????# #?# #??# ###### | | ??????####??# ##??# ### | | ????????????# ### ##????# ## | | ????????????# ### ###@ #???## | | ????????????# ##?###### #???# | | ??????????? #?????## #???# | | ?????????? ??#?## ##???# ## ### | | ???????? #???## ####### ####### | | ??????? ### #???# ### ###???? | | ??????# ???#"" #???# #???? | | ??????##???" "" #???# #""" #???? | | ???????????" "" #???# ## ##" "##???? | | ???????????#""""????## ###### ##""" #???? | | ??????????????""???#?##R ???#?# ## #???? | | ??????????????????????# ?????#### #?""" #???? | | ??????????????????????# ????????# #??"" #???# | | ?????????????????????? ????????## ##?????????? | | ????????????????????? ?????????## "#??????????? | | ????????????????????? ###??????????# ""??????????? | | ???????????????????????????????????# ##??"??#???? | | ???????????????????????????????????# #???"??????? | | ???????????????????????????????#?#?"" #??????????? | | ???????????????????????????????????#"" ??????????? | | ?????????????????????????????????????""??????????? | | ?????????????????????????????????????????????????? | | ?????????????????????????????????????????????????? | | ?????????????????????????????????????????????????? | | ?????????????????????????????????????????????????? | +----------------------------------------------------+ Best States ------------- Heat Dissipation 25 Energy Generation 15 Energy Capacity 250 Matter Stores 300 Matter Capacity 300 Sight Range 16 Terrain Scan Range 14 Terrain Scan Density 10 ECM Strength 1 Evasion (%) 55 Item Schematics ----------------- None Robot Schematics ------------------ None Fabricated ------------ Nothing Repaired ---------- Nothing Alien Tech Used ----------------- None Achievements -------------- None Challenges ------------ None Game ------ Seed WardroneSpreadMultirail Manual? 0 Play Time 00:45:31 Cumulative 6.4 hours Start 2025.05.30 @ 21:53:20 End 2025.05.30 @ 22:43:40 Sessions 1 Manual Loads 0 Difficulty Rogue Special Mode None Game No. 5 Rogue 5 Adventurer 0 Explorer 0 Win Type - Total 0 Types 0/0/0/0/0/0/0/0/0/0 Lore% 1 Gallery% 7 Achievement% 7 Wizard Run 0 Options --------- Layout 0 ASCII 0 Keyboard 0 Movement Mouse Keybinds 0 Fullscreen 1 Font 18/SmallcapsGlow Map View 76x50 Zoom Use 0% Tactical HUD 1 Map Filters NONE Filters NONE Steam X RUN: cfe4a01d-d581-4f4f-9de0-f18851730763